[Event "Late-Titled-Tuesday-Blitz-January-30-2024"]
[Site "Chess.com"]
[Date "2024.01.30"]
[Round "4"]
[White "ARTHURMOTIVATOR"]
[Black "WPWPWP-2015"]
[Result "0-1"]
[WhiteElo "2266"]
[BlackElo "2486"]
[TimeControl "180+1"]
[EndTime "14:40:31 PST"]
[Termination "WPWPWP-2015 won by checkmate"]

1. e4 {[%clk 0:03:00.9]} 1... c5 {[%clk 0:02:57.2]} 2. Nf3 {[%clk 0:02:59.2]}
2... d6 {[%clk 0:02:57.6]} 3. d4 {[%clk 0:02:59.5]} 3... cxd4 {[%clk 0:02:58.2]}
4. Nxd4 {[%clk 0:03:00.2]} 4... Nf6 {[%clk 0:02:58.8]} 5. Nc3 {[%clk 0:03:00.6]}
5... a6 {[%clk 0:02:59.4]} 6. Be3 {[%clk 0:02:57.4]} 6... e6 {[%clk 0:02:59.4]}
7. Qf3 {[%clk 0:02:51.6]} 7... Nbd7 {[%clk 0:02:58.5]} 8. O-O-O {[%clk
0:02:50.2]} 8... Qc7 {[%clk 0:02:57.1]} 9. Be2 {[%clk 0:02:41.8]} 9... b5 {[%clk
0:02:57]} 10. Rhe1 {[%clk 0:02:35.5]} 10... b4 {[%clk 0:02:56.6]} 11. Nd5 {[%clk
0:02:35.3]} 11... Qa5 {[%clk 0:02:54.4]} 12. Nxf6+ {[%clk 0:02:29.2]} 12... Nxf6
{[%clk 0:02:52]} 13. e5 {[%clk 0:02:03.4]} 13... Nd5 {[%clk 0:02:48.8]} 14. Nc6
{[%clk 0:01:57.2]} 14... Qxa2 {[%clk 0:02:44]} 15. exd6 {[%clk 0:01:42.4]} 15...
Bxd6 {[%clk 0:02:34.1]} 16. Rxd5 {[%clk 0:01:23]} 16... Qxd5 {[%clk 0:02:29]}
17. Qxd5 {[%clk 0:01:15.9]} 17... exd5 {[%clk 0:02:29.9]} 18. Bf3 {[%clk
0:01:10.6]} 18... Be6 {[%clk 0:02:28.2]} 19. Bd4 {[%clk 0:00:59.4]} 19... O-O
{[%clk 0:02:26.9]} 20. Ne5 {[%clk 0:00:36.1]} 20... Rfe8 {[%clk 0:02:25.5]} 21.
Rd1 {[%clk 0:00:32.4]} 21... Rac8 {[%clk 0:02:19.5]} 22. Nd3 {[%clk 0:00:31.6]}
22... a5 {[%clk 0:02:15.9]} 23. b3 {[%clk 0:00:30.9]} 23... f6 {[%clk
0:02:15.2]} 24. Kb2 {[%clk 0:00:31.1]} 24... Kf7 {[%clk 0:02:06.1]} 25. Ra1
{[%clk 0:00:30.9]} 25... Ra8 {[%clk 0:02:06.1]} 26. Bb6 {[%clk 0:00:26.7]} 26...
Reb8 {[%clk 0:02:03.5]} 27. Bxa5 {[%clk 0:00:24.4]} 27... Rb5 {[%clk 0:02:02.8]}
28. Bxb4 {[%clk 0:00:17.6]} 28... Rxa1 {[%clk 0:01:58.3]} 29. Bxd6 {[%clk
0:00:17.8]} 29... Ra6 {[%clk 0:01:45.1]} 30. Bc5 {[%clk 0:00:15.7]} 30... g5
{[%clk 0:01:33.7]} 31. b4 {[%clk 0:00:15.6]} 31... g4 {[%clk 0:01:27]} 32. Be2
{[%clk 0:00:16.2]} 32... Ra8 {[%clk 0:01:10.2]} 33. Kc3 {[%clk 0:00:16.1]} 33...
Rb7 {[%clk 0:01:04.2]} 34. Kd4 {[%clk 0:00:16.3]} 34... Ra2 {[%clk 0:01:00.5]}
35. Bd1 {[%clk 0:00:15]} 35... Ra1 {[%clk 0:00:59]} 36. Be2 {[%clk 0:00:12.8]}
36... Ra2 {[%clk 0:00:58.2]} 37. Bd1 {[%clk 0:00:12.5]} 37... h5 {[%clk
0:00:39.5]} 38. Nf4 {[%clk 0:00:12.4]} 38... h4 {[%clk 0:00:35.9]} 39. Nxe6
{[%clk 0:00:10.7]} 39... Kxe6 {[%clk 0:00:36.2]} 40. Bxg4+ {[%clk 0:00:11.5]}
40... f5 {[%clk 0:00:36.3]} 41. Bf3 {[%clk 0:00:11.6]} 41... Rd7 {[%clk
0:00:36.1]} 42. c3 {[%clk 0:00:10.3]} 42... Rd2+ {[%clk 0:00:32.7]} 43. Ke3
{[%clk 0:00:08.9]} 43... Rc2 {[%clk 0:00:32.3]} 44. Bd4 {[%clk 0:00:08]} 44...
Re7 {[%clk 0:00:26.3]} 45. g3 {[%clk 0:00:08.9]} 45... h3 {[%clk 0:00:25.9]} 46.
g4 {[%clk 0:00:08.2]} 46... Rb2 {[%clk 0:00:18]} 47. Kd3 {[%clk 0:00:07.9]}
47... f4 {[%clk 0:00:16.4]} 48. g5 {[%clk 0:00:07.3]} 48... Kf5 {[%clk
0:00:16.3]} 49. Bxd5 {[%clk 0:00:07.4]} 49... Kxg5 {[%clk 0:00:16.1]} 50. Bc5
{[%clk 0:00:08.3]} 50... Rd7 {[%clk 0:00:15.8]} 51. Kc4 {[%clk 0:00:09.2]} 51...
Rd2 {[%clk 0:00:14.8]} 52. b5 {[%clk 0:00:10.1]} 52... R2xd5 {[%clk 0:00:14.6]}
53. b6 {[%clk 0:00:10]} 53... Rf5 {[%clk 0:00:14.3]} 54. Bd4 {[%clk 0:00:09.3]}
54... Kg4 {[%clk 0:00:14]} 55. Kd3 {[%clk 0:00:09]} 55... Kf3 {[%clk 0:00:14.3]}
56. c4 {[%clk 0:00:07.9]} 56... Kg2 {[%clk 0:00:14.3]} 57. c5 {[%clk 0:00:08.8]}
57... Rfd5 {[%clk 0:00:09.9]} 58. c6 {[%clk 0:00:07.8]} 58... Rxd4+ {[%clk
0:00:10.3]} 59. Kc3 {[%clk 0:00:08]} 59... Rd3+ {[%clk 0:00:10.6]} 60. Kc4
{[%clk 0:00:07.6]} 60... Rd1 {[%clk 0:00:09.3]} 61. cxd7 {[%clk 0:00:05.7]}
61... Rxd7 {[%clk 0:00:08.9]} 62. Kc5 {[%clk 0:00:05.5]} 62... f3 {[%clk
0:00:09.3]} 63. Kc6 {[%clk 0:00:06.4]} 63... Rh7 {[%clk 0:00:09.2]} 64. b7
{[%clk 0:00:04]} 64... Rxb7 {[%clk 0:00:08.6]} 65. Kxb7 {[%clk 0:00:04.9]} 65...
Kxh2 {[%clk 0:00:08.4]} 66. Kc6 {[%clk 0:00:05.8]} 66... Kg2 {[%clk 0:00:08.9]}
67. Kd5 {[%clk 0:00:06.7]} 67... h2 {[%clk 0:00:09.5]} 68. Ke4 {[%clk
0:00:07.6]} 68... h1=Q {[%clk 0:00:09.9]} 69. Kf4 {[%clk 0:00:08.5]} 69... Kxf2
{[%clk 0:00:10.3]} 70. Kf5 {[%clk 0:00:08.1]} 70... Qh4 {[%clk 0:00:10.1]} 71.
Ke5 {[%clk 0:00:09]} 71... Qg4 {[%clk 0:00:10.3]} 72. Kd5 {[%clk 0:00:08.9]}
72... Ke3 {[%clk 0:00:10.8]} 73. Kd6 {[%clk 0:00:09.8]} 73... Qf5 {[%clk
0:00:11.1]} 74. Kc6 {[%clk 0:00:09.5]} 74... Qe5 {[%clk 0:00:10.7]} 75. Kb7
{[%clk 0:00:07.9]} 75... Ke4 {[%clk 0:00:10.6]} 76. Ka8 {[%clk 0:00:08.8]} 76...
Kd5 {[%clk 0:00:10.8]} 77. Kb7 {[%clk 0:00:09.7]} 77... Kd6 {[%clk 0:00:11]} 78.
Kc8 {[%clk 0:00:10]} 78... Kc6 {[%clk 0:00:10]} 79. Kd8 {[%clk 0:00:09.4]} 79...
Qg7 {[%clk 0:00:08.7]} 80. Ke8 {[%clk 0:00:09.2]} 80... f2 {[%clk 0:00:08.4]}
81. Kd8 {[%clk 0:00:09.2]} 81... Qf8# {[%clk 0:00:08.6]} 0-1

[Event "Late-Titled-Tuesday-Blitz-January-30-2024"]
[Site "Chess.com"]
[Date "2024.01.30"]
[Round "4"]
[White "TimGrutter03"]
[Black "sari07"]
[Result "1/2-1/2"]
[WhiteElo "2583"]
[BlackElo "2410"]
[TimeControl "180+1"]
[EndTime "14:41:14 PST"]
[Termination "Game drawn by repetition"]

1. e4 {[%clk 0:03:00.9]} 1... e5 {[%clk 0:02:48.6]} 2. Nf3 {[%clk 0:03:00.9]}
2... Nc6 {[%clk 0:02:48]} 3. d4 {[%clk 0:03:01.5]} 3... exd4 {[%clk 0:02:47.8]}
4. Bc4 {[%clk 0:03:02.1]} 4... Nf6 {[%clk 0:02:46.6]} 5. O-O {[%clk 0:03:01.8]}
5... Nxe4 {[%clk 0:02:46.1]} 6. Re1 {[%clk 0:03:01.2]} 6... d5 {[%clk
0:02:46.3]} 7. Nc3 {[%clk 0:02:57.8]} 7... dxc4 {[%clk 0:02:26.2]} 8. Rxe4+
{[%clk 0:02:55.7]} 8... Be7 {[%clk 0:02:24]} 9. Nxd4 {[%clk 0:02:51]} 9... O-O
{[%clk 0:02:04.3]} 10. Nxc6 {[%clk 0:02:50.3]} 10... bxc6 {[%clk 0:01:58.5]} 11.
Bf4 {[%clk 0:02:34.1]} 11... Be6 {[%clk 0:01:48.8]} 12. Qe2 {[%clk 0:02:29.4]}
12... Kh8 {[%clk 0:01:28.2]} 13. Rd1 {[%clk 0:02:26.6]} 13... Qb8 {[%clk
0:01:27.7]} 14. Bc1 {[%clk 0:02:05.9]} 14... Bf6 {[%clk 0:01:23.7]} 15. g4
{[%clk 0:01:54.4]} 15... Rd8 {[%clk 0:01:14.7]} 16. Re1 {[%clk 0:01:47.5]} 16...
Rd4 {[%clk 0:00:47.9]} 17. g5 {[%clk 0:01:30.3]} 17... Rxe4 {[%clk 0:00:46.1]}
18. Qxe4 {[%clk 0:01:20.9]} 18... Bxc3 {[%clk 0:00:45]} 19. bxc3 {[%clk
0:01:21.8]} 19... Bd5 {[%clk 0:00:32]} 20. Qe5 {[%clk 0:01:22]} 20... Qc8 {[%clk
0:00:28.2]} 21. Qf4 {[%clk 0:01:13.2]} 21... Qd7 {[%clk 0:00:20.3]} 22. Be3
{[%clk 0:01:12.6]} 22... Re8 {[%clk 0:00:19.3]} 23. Rb1 {[%clk 0:01:11.3]} 23...
Qh3 {[%clk 0:00:17.3]} 24. Qg3 {[%clk 0:01:10.7]} 24... Qf5 {[%clk 0:00:07.8]}
25. h4 {[%clk 0:00:48.9]} 25... Qe4 {[%clk 0:00:07.6]} 26. Kh2 {[%clk 0:00:48]}
26... Qxc2 {[%clk 0:00:07.6]} 27. Rg1 {[%clk 0:00:36.1]} 27... Qxc3 {[%clk
0:00:04.3]} 28. h5 {[%clk 0:00:36.1]} 28... Qd3 {[%clk 0:00:03.9]} 29. h6 {[%clk
0:00:34.3]} 29... Qg6 {[%clk 0:00:03.1]} 30. Bd4 {[%clk 0:00:31.2]} 30... Qh5+
{[%clk 0:00:03.3]} 31. Qh3 {[%clk 0:00:31.7]} 31... Qxh3+ {[%clk 0:00:04]} 32.
Kxh3 {[%clk 0:00:32.6]} 32... Kg8 {[%clk 0:00:04.1]} 33. hxg7 {[%clk 0:00:29.4]}
33... Re4 {[%clk 0:00:03.3]} 34. Bf6 {[%clk 0:00:29]} 34... Be6+ {[%clk
0:00:03.4]} 35. Kh2 {[%clk 0:00:25.2]} 35... Rh4+ {[%clk 0:00:03.7]} 36. Kg3
{[%clk 0:00:25.7]} 36... Rg4+ {[%clk 0:00:04.6]} 37. Kh2 {[%clk 0:00:26.3]}
37... Rxg1 {[%clk 0:00:05.5]} 38. Kxg1 {[%clk 0:00:27.1]} 38... c3 {[%clk
0:00:04.1]} 39. Bxc3 {[%clk 0:00:22.7]} 39... Bxa2 {[%clk 0:00:04.6]} 40. f4
{[%clk 0:00:22.1]} 40... Be6 {[%clk 0:00:04.3]} 41. Kf2 {[%clk 0:00:22.6]} 41...
Bf5 {[%clk 0:00:03.9]} 42. Ke3 {[%clk 0:00:22.6]} 42... a5 {[%clk 0:00:04.1]}
43. Kd2 {[%clk 0:00:21]} 43... a4 {[%clk 0:00:04.1]} 44. Kc1 {[%clk 0:00:21.6]}
44... Be4 {[%clk 0:00:03.3]} 45. Kb2 {[%clk 0:00:21.8]} 45... Bf5 {[%clk
0:00:03.3]} 46. Ka3 {[%clk 0:00:22.3]} 46... Bc2 {[%clk 0:00:03.9]} 47. Kb4
{[%clk 0:00:22.7]} 47... Bd1 {[%clk 0:00:03.7]} 48. Ka5 {[%clk 0:00:21.3]} 48...
a3 {[%clk 0:00:03.6]} 49. Ka6 {[%clk 0:00:21.5]} 49... a2 {[%clk 0:00:03.9]} 50.
Kb7 {[%clk 0:00:21.2]} 50... c5 {[%clk 0:00:03.4]} 51. Kxc7 {[%clk 0:00:20]}
51... c4 {[%clk 0:00:03.7]} 52. Kd6 {[%clk 0:00:20.7]} 52... Be2 {[%clk
0:00:03.8]} 53. Ke7 {[%clk 0:00:21.2]} 53... Bd3 {[%clk 0:00:03.9]} 54. Ba1
{[%clk 0:00:20.9]} 54... Bb1 {[%clk 0:00:03.8]} 55. Kf6 {[%clk 0:00:20.2]} 55...
Bd3 {[%clk 0:00:04.2]} 56. Ke7 {[%clk 0:00:20]} 56... Bc2 {[%clk 0:00:04.3]} 57.
Kd6 {[%clk 0:00:20.6]} 57... Bd3 {[%clk 0:00:04.6]} 58. Kc5 {[%clk 0:00:21]}
58... Bc2 {[%clk 0:00:04.8]} 59. Kb4 {[%clk 0:00:21.5]} 59... Bd3 {[%clk
0:00:04.9]} 60. Kc3 {[%clk 0:00:22]} 60... Be2 {[%clk 0:00:04.4]} 61. Kb2 {[%clk
0:00:21]} 61... Bd3 {[%clk 0:00:03.8]} 62. Kxa2 {[%clk 0:00:21.1]} 62... Bf5
{[%clk 0:00:03.7]} 63. Ka3 {[%clk 0:00:21.5]} 63... Bd3 {[%clk 0:00:03.8]} 64.
Kb4 {[%clk 0:00:22.1]} 64... Be2 {[%clk 0:00:03.5]} 65. Bf6 {[%clk 0:00:21.4]}
65... Bd3 {[%clk 0:00:03.4]} 66. Kc3 {[%clk 0:00:22]} 66... Be2 {[%clk
0:00:03.5]} 67. Kd2 {[%clk 0:00:22.5]} 67... Bd3 {[%clk 0:00:03.8]} 68. Ke3
{[%clk 0:00:23.1]} 68... Bf5 {[%clk 0:00:03.9]} 69. Kf2 {[%clk 0:00:23.3]} 69...
Bd3 {[%clk 0:00:04.5]} 70. Kg3 {[%clk 0:00:23.8]} 70... Bf5 {[%clk 0:00:05.1]}
71. Kh4 {[%clk 0:00:24.1]} 71... Bd3 {[%clk 0:00:05.8]} 72. Kg4 {[%clk
0:00:24.4]} 72... Be4 {[%clk 0:00:05.3]} 73. f5 {[%clk 0:00:24.5]} 73... Bd3
{[%clk 0:00:05.4]} 74. Bc3 {[%clk 0:00:24.7]} 74... Bc2 {[%clk 0:00:05.4]} 75.
Kf4 {[%clk 0:00:25.3]} 75... Bb1 {[%clk 0:00:05.5]} 76. Ke5 {[%clk 0:00:23.2]}
76... Bd3 {[%clk 0:00:05.9]} 77. Kf6 {[%clk 0:00:23]} 77... Bc2 {[%clk
0:00:05.9]} 78. Bd2 {[%clk 0:00:20.3]} 78... Bb1 {[%clk 0:00:06.2]} 79. Be1
{[%clk 0:00:20.2]} 79... Bc2 {[%clk 0:00:06.5]} 80. Bc3 {[%clk 0:00:20.5]} 80...
Bb1 {[%clk 0:00:06.8]} 81. Ke5 {[%clk 0:00:21.1]} 81... Bc2 {[%clk 0:00:07]} 82.
Kf4 {[%clk 0:00:14.9]} 82... Bd3 {[%clk 0:00:07.1]} 83. Kg4 {[%clk 0:00:15.5]}
83... Bc2 {[%clk 0:00:07.6]} 84. g6 {[%clk 0:00:13.1]} 84... hxg6 {[%clk
0:00:06.6]} 85. f6 {[%clk 0:00:13.1]} 85... Bf5+ {[%clk 0:00:06.1]} 86. Kg5
{[%clk 0:00:13.7]} 86... Be6 {[%clk 0:00:06.6]} 87. Kh6 {[%clk 0:00:13.9]} 87...
Bd5 {[%clk 0:00:06.7]} 88. Be5 {[%clk 0:00:13.8]} 88... Be6 {[%clk 0:00:07]} 89.
Bf4 {[%clk 0:00:13.5]} 89... Bd5 {[%clk 0:00:07.4]} 90. Bc1 {[%clk 0:00:13.2]}
90... Be4 {[%clk 0:00:07.9]} 91. Kg5 {[%clk 0:00:13.3]} 91... Bd3 {[%clk
0:00:08.4]} 92. Kf4 {[%clk 0:00:14]} 92... Bc2 {[%clk 0:00:09]} 93. Ke3 {[%clk
0:00:14.2]} 93... g5 {[%clk 0:00:08.8]} 94. Kd4 {[%clk 0:00:13.9]} 94... g4
{[%clk 0:00:08.3]} 95. Kxc4 {[%clk 0:00:13.6]} 95... g3 {[%clk 0:00:08.6]} 96.
Be3 {[%clk 0:00:13.4]} 96... g2 {[%clk 0:00:08.9]} 97. Kc3 {[%clk 0:00:13.7]}
97... Bd1 {[%clk 0:00:08.9]} 98. Kd2 {[%clk 0:00:13.6]} 98... Bf3 {[%clk
0:00:09.4]} 99. Ke1 {[%clk 0:00:14.2]} 99... Ba8 {[%clk 0:00:10]} 100. Kf2
{[%clk 0:00:14.3]} 100... Bb7 {[%clk 0:00:10.9]} 101. Kg1 {[%clk 0:00:14.8]}
101... Ba8 {[%clk 0:00:11.8]} 102. Kh2 {[%clk 0:00:15.3]} 102... Bb7 {[%clk
0:00:12.7]} 103. Kg3 {[%clk 0:00:15.9]} 103... Ba8 {[%clk 0:00:13.1]} 104. Kf4
{[%clk 0:00:16.5]} 104... Bb7 {[%clk 0:00:13.7]} 105. Ke5 {[%clk 0:00:17.1]}
105... Ba8 {[%clk 0:00:14.6]} 106. Bg1 {[%clk 0:00:17.6]} 106... Bb7 {[%clk
0:00:14.8]} 107. Kd6 {[%clk 0:00:18.2]} 107... Ba8 {[%clk 0:00:15.3]} 108. Kc7
{[%clk 0:00:18.3]} 108... Bf3 {[%clk 0:00:16.2]} 109. Kb6 {[%clk 0:00:18.8]}
109... Be2 {[%clk 0:00:16.4]} 110. Kc5 {[%clk 0:00:19.3]} 110... Bf3 {[%clk
0:00:17]} 111. Kd4 {[%clk 0:00:19.6]} 111... Ba8 {[%clk 0:00:17.5]} 112. Ke3
{[%clk 0:00:20.1]} 112... Bb7 {[%clk 0:00:17.9]} 113. Kf2 {[%clk 0:00:20.7]}
113... Ba8 {[%clk 0:00:18.8]} 114. Kg3 {[%clk 0:00:20.9]} 114... Bb7 {[%clk
0:00:19.7]} 115. Kf2 {[%clk 0:00:21.8]} 115... Ba8 {[%clk 0:00:20.6]} 116. Kg3
{[%clk 0:00:22.7]} 116... Bb7 {[%clk 0:00:21]} 117. Kf2 {[%clk 0:00:23.6]}
1/2-1/2

[Event "Late-Titled-Tuesday-Blitz-January-30-2024"]
[Site "Chess.com"]
[Date "2024.01.30"]
[Round "4"]
[White "GHANDEEVAM2003"]
[Black "mbojan"]
[Result "0-1"]
[WhiteElo "3026"]
[BlackElo "2870"]
[TimeControl "180+1"]
[EndTime "14:42:03 PST"]
[Termination "mbojan won by checkmate"]

1. b3 {[%clk 0:01:13]} 1... g6 {[%clk 0:02:55.3]} 2. Bb2 {[%clk 0:01:13.9]} 2...
Nf6 {[%clk 0:02:56.2]} 3. g3 {[%clk 0:01:14.1]} 3... Bg7 {[%clk 0:02:55.6]} 4.
Bg2 {[%clk 0:01:14.7]} 4... d6 {[%clk 0:02:56.3]} 5. Nf3 {[%clk 0:01:14.1]} 5...
c5 {[%clk 0:02:54.7]} 6. O-O {[%clk 0:01:14.4]} 6... O-O {[%clk 0:02:48.6]} 7.
d4 {[%clk 0:01:14.5]} 7... Nc6 {[%clk 0:02:22.1]} 8. d5 {[%clk 0:01:12.9]} 8...
Nb4 {[%clk 0:02:20.3]} 9. c4 {[%clk 0:01:13.4]} 9... e5 {[%clk 0:02:15]} 10. a3
{[%clk 0:01:10.8]} 10... Na6 {[%clk 0:02:15]} 11. Nc3 {[%clk 0:01:10.8]} 11...
Nc7 {[%clk 0:02:15.1]} 12. e4 {[%clk 0:01:10.2]} 12... a6 {[%clk 0:02:13.5]} 13.
b4 {[%clk 0:01:10.1]} 13... b6 {[%clk 0:02:12.5]} 14. Ne1 {[%clk 0:01:05.4]}
14... Bd7 {[%clk 0:02:07.8]} 15. bxc5 {[%clk 0:01:04]} 15... bxc5 {[%clk
0:02:07.8]} 16. Nd3 {[%clk 0:01:04.9]} 16... Kh8 {[%clk 0:02:06]} 17. f4 {[%clk
0:01:04.3]} 17... exf4 {[%clk 0:02:06.9]} 18. gxf4 {[%clk 0:01:05.2]} 18... Nce8
{[%clk 0:02:03.2]} 19. e5 {[%clk 0:01:03]} 19... Ng8 {[%clk 0:02:03.4]} 20. Ne4
{[%clk 0:01:01.2]} 20... Rb8 {[%clk 0:02:01.9]} 21. Qd2 {[%clk 0:00:56.9]} 21...
Nh6 {[%clk 0:02:00.3]} 22. exd6 {[%clk 0:00:54.5]} 22... Rxb2 {[%clk 0:01:40.3]}
23. Nxb2 {[%clk 0:00:55.4]} 23... Nf5 {[%clk 0:01:41.2]} 24. Kh1 {[%clk
0:00:51.4]} 24... Qb6 {[%clk 0:01:24.5]} 25. Nd3 {[%clk 0:00:50.3]} 25... Bd4
{[%clk 0:01:12.1]} 26. Rab1 {[%clk 0:00:49.4]} 26... Qa7 {[%clk 0:01:12.7]} 27.
Ne5 {[%clk 0:00:48.2]} 27... Nexd6 {[%clk 0:01:09.4]} 28. Qd3 {[%clk 0:00:41]}
28... Nxe4 {[%clk 0:00:59.1]} 29. Bxe4 {[%clk 0:00:41.9]} 29... Nd6 {[%clk
0:00:59.5]} 30. Nxd7 {[%clk 0:00:38.5]} 30... Qxd7 {[%clk 0:01:00.4]} 31. f5
{[%clk 0:00:39.4]} 31... Re8 {[%clk 0:00:59.3]} 32. fxg6 {[%clk 0:00:38.8]}
32... hxg6 {[%clk 0:01:00.2]} 33. Bxg6 {[%clk 0:00:37.1]} 33... fxg6 {[%clk
0:00:43.3]} 34. Qxg6 {[%clk 0:00:38]} 34... Qh7 {[%clk 0:00:35]} 35. Qxh7+
{[%clk 0:00:31.6]} 35... Kxh7 {[%clk 0:00:35.9]} 36. Rb6 {[%clk 0:00:30.7]}
36... Nxc4 {[%clk 0:00:35.6]} 37. Rxa6 {[%clk 0:00:30.3]} 37... Ne3 {[%clk
0:00:33.3]} 38. Rf7+ {[%clk 0:00:29.2]} 38... Kg8 {[%clk 0:00:33.5]} 39. Rd7
{[%clk 0:00:29.8]} 39... c4 {[%clk 0:00:32.7]} 40. d6 {[%clk 0:00:29]} 40... c3
{[%clk 0:00:33]} 41. Re7 {[%clk 0:00:28.3]} 41... Rxe7 {[%clk 0:00:28.2]} 42.
dxe7 {[%clk 0:00:29.2]} 42... Kf7 {[%clk 0:00:28.9]} 43. a4 {[%clk 0:00:23.6]}
43... c2 {[%clk 0:00:29.2]} 44. Rc6 {[%clk 0:00:23.3]} 44... Kxe7 {[%clk
0:00:21.7]} 45. a5 {[%clk 0:00:23.3]} 45... Kd7 {[%clk 0:00:21.9]} 46. Rxc2
{[%clk 0:00:20.6]} 46... Nxc2 {[%clk 0:00:22.8]} 47. Kg2 {[%clk 0:00:21.5]}
47... Nb4 {[%clk 0:00:22.3]} 48. Kf3 {[%clk 0:00:21.7]} 48... Nc6 {[%clk
0:00:22.3]} 49. Ke4 {[%clk 0:00:21.2]} 49... Ba7 {[%clk 0:00:22.6]} 50. a6
{[%clk 0:00:21.4]} 50... Nb4 {[%clk 0:00:22.7]} 51. h4 {[%clk 0:00:22.3]} 51...
Ke7 {[%clk 0:00:22.3]} 52. h5 {[%clk 0:00:23.2]} 52... Nxa6 {[%clk 0:00:20]} 53.
Kd5 {[%clk 0:00:24.1]} 53... Kf7 {[%clk 0:00:19.4]} 54. Kc6 {[%clk 0:00:25]}
54... Bf2 {[%clk 0:00:19.6]} 55. Kb5 {[%clk 0:00:25.9]} 55... Nc7+ {[%clk
0:00:19.8]} 56. Kc6 {[%clk 0:00:25.9]} 56... Ne6 {[%clk 0:00:20.7]} 57. h6
{[%clk 0:00:26.8]} 57... Ng5 {[%clk 0:00:20.9]} 58. Kd5 {[%clk 0:00:24.9]} 58...
Nh7 {[%clk 0:00:21.4]} 59. Ke4 {[%clk 0:00:25.8]} 59... Kg6 {[%clk 0:00:21.7]}
60. Kd5 {[%clk 0:00:26.7]} 60... Ba7 {[%clk 0:00:22.3]} 61. Ke4 {[%clk
0:00:27.6]} 61... Bb8 {[%clk 0:00:23.1]} 62. Kd5 {[%clk 0:00:28.3]} 62... Bc7
{[%clk 0:00:24]} 63. Ke4 {[%clk 0:00:29.2]} 63... Bd8 {[%clk 0:00:24.9]} 64. Kd5
{[%clk 0:00:29.8]} 64... Be7 {[%clk 0:00:25.8]} 65. Ke4 {[%clk 0:00:30]} 65...
Bf8 {[%clk 0:00:26.7]} 66. Kd5 {[%clk 0:00:30.6]} 66... Ba3 {[%clk 0:00:27.6]}
67. Ke4 {[%clk 0:00:30.5]} 67... Bb2 {[%clk 0:00:28.5]} 68. Kd3 {[%clk
0:00:31.1]} 68... Bc1 {[%clk 0:00:29.4]} 69. Ke4 {[%clk 0:00:32]} 69... Bg5
{[%clk 0:00:29.9]} 70. Kf3 {[%clk 0:00:32.9]} 70... Nf6 {[%clk 0:00:30.2]} 71.
h7 {[%clk 0:00:32.4]} 71... Kxh7 {[%clk 0:00:30.3]} 72. Ke2 {[%clk 0:00:32.7]}
72... Kg6 {[%clk 0:00:31.2]} 73. Kd3 {[%clk 0:00:33.4]} 73... Kf5 {[%clk
0:00:32.1]} 74. Kd4 {[%clk 0:00:34.3]} 74... Bf4 {[%clk 0:00:31.3]} 75. Kd3
{[%clk 0:00:34.8]} 75... Ke5 {[%clk 0:00:31.8]} 76. Kc4 {[%clk 0:00:34.1]} 76...
Ne4 {[%clk 0:00:30.6]} 77. Kd3 {[%clk 0:00:33.6]} 77... Kd5 {[%clk 0:00:30.4]}
78. Ke2 {[%clk 0:00:31.3]} 78... Ng5 {[%clk 0:00:30.6]} 79. Kd3 {[%clk
0:00:31.3]} 79... Nf3 {[%clk 0:00:30.6]} 80. Kc3 {[%clk 0:00:29.2]} 80... Ne5
{[%clk 0:00:30.5]} 81. Kb4 {[%clk 0:00:28.4]} 81... Be3 {[%clk 0:00:28.6]} 82.
Kc3 {[%clk 0:00:28]} 82... Kc5 {[%clk 0:00:27.3]} 83. Kc2 {[%clk 0:00:25]} 83...
Kc4 {[%clk 0:00:27.2]} 84. Kd1 {[%clk 0:00:25.7]} 84... Kd3 {[%clk 0:00:25.6]}
85. Ke1 {[%clk 0:00:25.8]} 85... Nf3+ {[%clk 0:00:25.4]} 86. Kf1 {[%clk
0:00:25.7]} 86... Nh4 {[%clk 0:00:25.7]} 87. Ke1 {[%clk 0:00:25.6]} 87... Ng2+
{[%clk 0:00:25.5]} 88. Kf1 {[%clk 0:00:25.2]} 88... Nf4 {[%clk 0:00:26.2]} 89.
Ke1 {[%clk 0:00:25.7]} 89... Bc5 {[%clk 0:00:16.1]} 90. Kf1 {[%clk 0:00:25.4]}
90... Bb6 {[%clk 0:00:16.5]} 91. Ke1 {[%clk 0:00:25.5]} 91... Ke3 {[%clk
0:00:16.6]} 92. Kf1 {[%clk 0:00:25.5]} 92... Bc5 {[%clk 0:00:16.5]} 93. Ke1
{[%clk 0:00:24.3]} 93... Ne2 {[%clk 0:00:15.8]} 94. Kf1 {[%clk 0:00:22.2]} 94...
Ng3+ {[%clk 0:00:15.2]} 95. Ke1 {[%clk 0:00:22.8]} 95... Ne4 {[%clk 0:00:15.5]}
96. Kf1 {[%clk 0:00:23.2]} 96... Nf2 {[%clk 0:00:15.1]} 97. Kg2 {[%clk
0:00:23.1]} 97... Bd6 {[%clk 0:00:15.7]} 98. Kg1 {[%clk 0:00:21.2]} 98... Kf3
{[%clk 0:00:16.1]} 99. Kf1 {[%clk 0:00:20.6]} 99... Bh2 {[%clk 0:00:17]} 100.
Ke1 {[%clk 0:00:21.2]} 100... Ne4 {[%clk 0:00:17.9]} 101. Kf1 {[%clk 0:00:21.4]}
101... Nd2+ {[%clk 0:00:18]} 102. Ke1 {[%clk 0:00:22]} 102... Ke3 {[%clk
0:00:18.9]} 103. Kd1 {[%clk 0:00:22.9]} 103... Kd3 {[%clk 0:00:19.8]} 104. Kc1
{[%clk 0:00:23.7]} 104... Be5 {[%clk 0:00:18.7]} 105. Kd1 {[%clk 0:00:24.3]}
105... Bg3 {[%clk 0:00:16.7]} 106. Kc1 {[%clk 0:00:24.6]} 106... Nc4 {[%clk
0:00:16.8]} 107. Kb1 {[%clk 0:00:25]} 107... Kc3 {[%clk 0:00:15.8]} 108. Ka2
{[%clk 0:00:25.6]} 108... Bd6 {[%clk 0:00:13.9]} 109. Kb1 {[%clk 0:00:26]}
109... Ba3 {[%clk 0:00:10.5]} 110. Ka2 {[%clk 0:00:26]} 110... Kc2 {[%clk
0:00:06]} 111. Ka1 {[%clk 0:00:25.5]} 111... Bd6 {[%clk 0:00:06.9]} 112. Ka2
{[%clk 0:00:25]} 112... Ne3 {[%clk 0:00:07.2]} 113. Ka1 {[%clk 0:00:24.8]}
113... Nd5 {[%clk 0:00:04.7]} 114. Ka2 {[%clk 0:00:24.8]} 114... Nc3+ {[%clk
0:00:04.4]} 115. Ka1 {[%clk 0:00:24.9]} 115... Ne2 {[%clk 0:00:05.2]} 116. Ka2
{[%clk 0:00:25.5]} 116... Nc1+ {[%clk 0:00:06]} 117. Ka1 {[%clk 0:00:25.9]}
117... Be5# {[%clk 0:00:06.9]} 0-1